bitfinex/quotes_SOLUSD_20241116
["timestamp","ask_amount","ask_price","bid_price","bid_amount"]
[1731758865462,20.0,219.49,219.4,0.5176918]
[1731758865654,2.2781,219.48,219.4,0.5176918]
[1731758867445,2.277,219.58,219.4,0.5176918]
[1731758868366,42.8728,219.44,219.4,0.5176918]
[1731758868566,24.027864,219.5,219.4,0.5176918]
[1731758868865,20.0,219.47,219.4,0.5176918]
[1731758869663,19.79723849,219.62,219.4,0.5176918]
[1731758869857,42.22,219.61,219.4,0.5176918]
[1731758870360,0.2,219.56,219.4,0.5176918]
[1731758870564,0.09367462,219.55,219.4,0.5176918]
[1731758871069,0.21916462,219.55,219.4,0.5176918]
[1731758871360,0.09367462,219.51,219.4,0.5176918]
[1731758871566,24.12153862,219.49,219.4,0.5176918]
[1731758871752,20.0,219.44,219.4,0.5176918]
[1731758871953,20.0,219.42,219.4,0.5176918]
[1731758872458,7.9726,219.5,219.4,0.5176918]
[1731758872459,2.2779,219.5,219.4,0.5176918]
[1731758872856,20.09367462,219.49,219.4,0.5176918]
[1731758873772,0.09367462,219.47,219.4,0.5176918]
[1731758873946,20.0,219.45,219.4,0.5176918]
[1731758874568,2.2782,219.47,219.4,0.5176918]
[1731758875874,2.2784,219.45,219.4,0.5176918]
[1731758876247,20.0,219.43,219.4,0.5176918]
[1731758877850,2.2787,219.42,219.4,0.5176918]
[1731758879848,2.2787,219.42,219.25,0.1]
[1731758879849,20.0,219.38,219.25,0.2160306]
[1731758880046,20.0,219.36,219.25,0.2160306]
[1731758880268,20.0,219.34,219.25,0.2160306]
[1731758880954,20.0,219.39,219.25,0.2160306]
[1731758881759,2.2791,219.38,219.25,0.2160306]
[1731758882364,6.99816548,220.03,219.25,0.2160306]
[1731758882365,2.2784,219.45,219.28,0.09367462]
[1731758882554,2.2784,219.45,219.3,0.09367462]
[1731758883273,11.3902,219.49,219.26,16.0626]
[1731758883274,2.2778,219.51,219.39,0.34465462]
[1731758883574,2.2765,219.63,219.41,70.09367462]
[1731758883763,2.2765,219.63,219.45,0.21916462]
[1731758883965,2.2765,219.63,219.49,0.09367462]
[1731758884171,2.2765,219.63,219.51,0.44465462]
[1731758884469,2.2754,219.74,219.56,0.09367462]
[1731758884688,2.2754,219.74,219.6,0.09367462]
[1731758884881,2.2744,219.83,219.66,0.12549]
[1731758885044,2.2744,219.83,219.61,0.1]
[1731758885045,2.2744,219.83,219.62,0.25098]
[1731758885244,7.9606,219.83,219.58,70.0]
[1731758885562,19.35850576,219.82,219.59,0.12549]
[1731758885754,7.9613,219.81,219.54,11.3872]
[1731758885974,6.29423474,219.8,219.52,12.1537]
[1731758886294,12.33334982,219.8,219.53,70.35098]
[1731758886469,19.3347,219.81,219.58,0.21916462]
[1731758886678,19.3347,219.81,219.6,0.09367462]
[1731758887062,21.154514,219.81,219.6,0.09367462]
[1731758887261,21.154514,219.81,219.59,0.21916462]
[1731758887491,21.154514,219.81,219.59,0.09367462]
[1731758887790,0.09367462,219.75,219.52,12.1537]
[1731758887967,11.27689012,219.75,219.48,70.0]
[1731758888166,0.31916462,219.73,219.44,11.3921]
[1731758888383,20.0,219.69,219.5,0.1]
[1731758888570,0.09367462,219.7,219.53,0.09367462]
[1731758888771,43.776884,219.74,219.53,0.19367462]
[1731758888994,0.09367462,219.73,219.53,0.19367462]
[1731758889490,23.776884,219.71,219.55,0.09367462]
[1731758889788,20.0,219.7,219.57,0.34465462]
[1731758889990,2.2756,219.72,219.57,0.34465462]
[1731758890189,2.2756,219.72,219.6,0.09367462]
[1731758890374,2.2747,219.8,219.67,0.09367462]
[1731758890692,2.2747,219.8,219.67,0.21916462]
[1731758890864,2.2747,219.8,219.68,0.12549]
[1731758891072,2.2747,219.8,219.69,0.21916462]
[1731758891691,232.66190982,219.83,219.52,70.1]
[1731758891894,232.66190982,219.83,219.52,70.0]
[1731758892066,232.66190982,219.83,219.45,4.5568]
[1731758892067,20.09367462,219.82,219.57,0.09367462]
[1731758892266,20.09367462,219.78,219.57,0.09367462]
[1731758892587,20.0,219.72,219.53,70.1]
[1731758892887,20.0,219.71,219.54,4.64857462]
[1731758893093,20.0,219.71,219.56,0.09367462]
[1731758893899,2.2758,219.7,219.56,0.09367462]
[1731758894776,2.2758,219.7,219.56,0.21916462]
[1731758895174,2.2758,219.7,219.57,0.12549]
[1731758895394,2.2758,219.7,219.54,0.25098]
[1731758895572,2.2758,219.7,219.54,4.80588]
[1731758895894,26.39783862,219.65,219.45,70.0]
[1731758896091,0.21916462,219.59,219.36,70.0]
[1731758896300,0.12549,219.54,219.37,11.3961]
[1731758896467,20.0,219.54,219.37,15.9546]
[1731758896796,0.1,219.68,219.41,0.09367462]
[1731758896971,2.2763,219.65,219.48,0.1]
[1731758897487,2.2763,219.65,219.49,0.09367462]
[1731758897806,0.12549,219.64,219.44,70.0]
[1731758897967,0.12549,219.62,219.4,0.1]
[1731758898290,0.12549,219.58,219.41,0.09367462]
[1731758898589,24.027864,219.58,219.41,0.09367462]
[1731758898800,20.21916462,219.55,219.39,11.3952]
[1731758899098,20.0,219.53,219.39,11.3952]
[1731758899790,20.0,219.51,219.39,11.3952]
[1731758899993,22.2778,219.51,219.39,11.3952]
[1731758900195,22.2778,219.51,219.35,4.5588]
[1731758900892,20.0,219.49,219.33,15.9573]
[1731758901329,20.0,219.49,219.34,0.09367462]
[1731758901606,22.2778,219.51,219.34,70.0]
[1731758901782,20.0,219.49,219.34,70.0]
[1731758902098,2.2781,219.48,219.33,15.9573]
[1731758902969,2.2781,219.48,219.36,0.09367462]
[1731758903173,2.2781,219.48,219.36,0.21916462]
[1731758903395,2.2781,219.48,219.35,11.3973]
[1731758903775,0.12549,219.47,219.29,11.4003]
[1731758904095,20.0,219.42,219.29,15.9602]
[1731758904797,23.776884,219.41,219.29,15.9602]
[1731758904972,22.2789,219.4,219.29,15.9602]
[1731758905303,22.2789,219.4,219.29,11.4003]
[1731758905674,22.2789,219.4,219.19,13.2139]
[1731758905675,22.2789,219.4,219.25,4.7769306]
[1731758905897,22.2789,219.4,219.25,74.7769306]
[1731758906200,22.2789,219.4,219.26,0.09367462]
[1731758906998,22.2789,219.4,219.28,0.21916462]
[1731758908298,20.0,219.38,219.25,4.7769306]
[1731758908472,20.25098,219.36,219.25,0.2160306]
[1731758908892,23.776884,219.35,219.25,0.2160306]
[1731758909194,20.0,219.36,219.25,0.2160306]
[1731758909397,23.776884,219.35,219.25,0.2160306]
[1731758909572,7.9762,219.4,219.25,0.2160306]
[1731758909573,20.0,219.32,219.25,0.2160306]
[1731758910199,26.182174,219.31,219.25,0.2160306]
[1731758910396,20.0,219.3,219.25,0.2160306]
[1731758911383,2.2798,219.31,219.25,0.2160306]
[1731758912499,26.40073862,219.37,219.25,0.2160306]
[1731758912678,24.027864,219.35,219.25,0.2160306]
[1731758912990,20.0,219.34,219.25,0.2160306]
[1731758914376,2.2796,219.33,219.25,0.2160306]
[1731758914583,20.0,219.31,219.25,0.2160306]
[1731758915290,2.2796,219.33,219.25,0.2160306]
[1731758916001,0.1,219.51,219.33,0.25098]
[1731758916002,2.2778,219.51,219.33,0.25098]
[1731758916205,2.2778,219.51,219.36,0.19367462]
[1731758916402,24.3131,219.58,219.36,0.19367462]
[1731758916403,5.6939,219.54,219.39,4.558]
[1731758916588,5.6939,219.54,219.37,11.3961]
[1731758916777,5.6939,219.54,219.32,70.0]
[1731758916981,5.6939,219.54,219.33,4.5592]
[1731758917392,5.6939,219.54,219.31,11.3989]
[1731758917592,20.0,219.53,219.31,11.3989]
[1731758917783,0.09367462,219.52,219.27,4.5605]
[1731758918182,0.21916462,219.52,219.27,4.5605]
[1731758918407,0.12549,219.49,219.28,70.09367462]
[1731758918605,0.12549,219.49,219.32,0.09367462]
[1731758919102,0.09367462,219.48,219.29,0.12549]
[1731758919284,0.09367462,219.48,219.27,15.9619]
[1731758919489,20.09367462,219.46,219.27,15.9619]
[1731758919686,0.09367462,219.44,219.27,15.9619]
[1731758920012,20.0,219.42,219.28,0.09367462]
[1731758920193,23.902374,219.41,219.28,0.09367462]
[1731758920388,20.0,219.4,219.28,0.09367462]
[1731758920701,22.279,219.4,219.29,4.5601]
[1731758920903,2.40389,219.45,219.3,70.21916462]
[1731758921777,2.2778,219.51,219.39,0.19367462]
[1731758921991,12.9275,219.58,219.39,0.19367462]
[1731758921992,12.9275,219.58,219.39,0.44465462]
[1731758922194,2.2771,219.57,219.43,0.21916462]
[1731758922800,2.2771,219.57,219.44,4.557]
[1731758923278,2.2771,219.57,219.39,70.12549]
[1731758923482,0.12549,219.27,219.06,4.508]
[1731758923786,0.1,219.29,219.12,70.0]
[1731758924279,23.876884,219.29,219.09,70.0]
[1731758924516,23.876884,219.27,219.09,70.0]
[1731758924711,20.12549,219.26,219.09,70.0]
[1731758924883,46.60183862,219.26,219.1,4.5639]
[1731758925083,46.60183862,219.26,219.06,70.0]
[1731758925695,0.12549,219.21,219.07,15.9763]
[1731758926201,0.22549,219.21,219.07,15.9763]
[1731758927105,2.40639,219.21,219.07,15.9763]
[1731758927305,2.50639,219.21,219.07,15.9763]
[1731758927682,2.40639,219.21,219.07,15.9763]
[1731758928795,46.60243862,219.21,219.07,11.4116]
[1731758929202,46.50243862,219.21,219.07,11.4116]
[1731758929398,46.60243862,219.21,219.07,11.4116]
[1731758929598,22.2809,219.21,219.07,11.4116]
[1731758929807,7.59941795,219.25,219.05,12.0836]
[1731758929808,2.2805,219.25,219.08,70.0]
[1731758930087,2.2799,219.3,219.16,4.5627]
[1731758930802,2.2799,219.3,219.14,4.5632]
[1731758931589,0.1,219.29,219.15,4.5628]
[1731758931793,0.22549,219.29,219.15,4.5628]
[1731758932288,0.25098,219.29,219.15,4.5628]
[1731758932488,0.35098,219.29,219.15,4.5628]
[1731758932708,2.3801,219.28,219.15,4.5628]
[1731758933111,0.1,219.26,219.12,11.4088]
[1731758933313,0.1,219.24,219.12,11.4088]
[1731758933611,0.1,219.22,219.08,4.5643]
[1731758933996,0.22549,219.22,219.08,4.5643]
[1731758934400,0.12549,219.21,219.08,4.5643]
[1731758934697,26.308764,219.21,219.06,11.4121]
[1731758935011,46.40243862,219.21,219.06,11.4121]
[1731758935390,46.40243862,219.21,219.0,11.4151]
[1731758935593,46.40243862,219.21,219.2,8.80727678]
[1731758936620,22.40639,219.21,219.2,8.80727678]
[1731758936798,2.2809,219.21,219.2,8.80727678]
[1731758938812,0.12549,219.22,219.2,8.80727678]
[1731758939196,0.1,219.21,219.2,8.80727678]
[1731758939521,20.35098,219.21,219.2,8.80727678]
[1731758940313,44.22153862,219.21,219.2,8.80727678]
[1731758940697,46.50243862,219.21,219.2,8.80727678]
[1731758941602,46.50243862,219.21,219.2,6.03977678]
[1731758941805,2.2803,219.26,219.2,6.03977678]
[1731758942112,2.2798,219.31,219.2,6.03977678]
[1731758942495,2.2798,219.31,219.2,6.15908758]
[1731758942919,2.2798,219.31,219.21,4.5618]
[1731758943120,2.2792,219.37,219.24,0.09367462]
[1731758943415,2.2792,219.37,219.24,0.21916462]
[1731758943808,2.2792,219.37,219.21,15.9663]
[1731758944124,2.3792,219.37,219.21,15.9663]
[1731758944494,2.3792,219.37,219.22,0.09367462]
[1731758944698,2.3792,219.37,219.23,4.5614]
[1731758944921,2.2792,219.37,219.24,0.09367462]
[1731758945701,2.3792,219.37,219.23,15.9649]
[1731758945897,0.1,219.35,219.23,11.4035]
[1731758946099,0.1,219.32,219.2,6.15908758]
[1731758946321,0.2,219.29,219.2,6.15908758]
[1731758946520,20.0,219.36,219.2,6.15908758]
[1731758946521,0.09367462,219.26,219.2,6.15908758]
[1731758946701,2.2805,219.25,219.2,6.15908758]
[1731758947918,2.2799,219.3,219.2,6.15908758]
[1731758948804,2.2799,219.3,219.2,10.72088758]
[1731758949008,2.2794,219.35,219.21,0.21916462]
[1731758949919,2.3794,219.35,219.21,0.21916462]
[1731758950227,2.3794,219.35,219.2,22.12598758]
[1731758950403,0.1,219.32,219.2,17.56418758]
[1731758951023,0.1,219.32,219.2,22.12618758]
[1731758951810,20.25098,219.31,219.2,17.56418758]
[1731758952016,0.1,219.28,219.2,6.15908758]
[1731758952330,2.2802,219.27,219.2,6.15908758]
[1731758952823,0.1,219.33,219.2,6.15908758]
[1731758953029,0.12549,219.31,219.21,4.5618]
[1731758953231,0.12549,219.31,219.2,6.15908758]
[1731758953523,0.22549,219.31,219.2,6.15908758]
[1731758953722,0.12549,219.3,219.2,6.15908758]
[1731758953930,0.1,219.28,219.2,6.15908758]
[1731758954135,20.25098,219.28,219.2,6.15908758]
[1731758954303,2.2802,219.27,219.2,6.15908758]
[1731758956831,0.25098,219.26,219.2,6.15908758]
[1731758957009,0.25098,219.24,219.2,6.15908758]
[1731758957210,2.2802,219.27,219.2,6.15908758]
[1731758958527,0.25098,219.26,219.2,6.15908758]
[1731758958725,0.12549,219.24,219.2,6.15908758]
[1731758959127,0.25098,219.26,219.2,6.15908758]
[1731758959439,2.2794,219.35,219.2,22.12608758]
[1731758959936,0.1,219.3,219.2,6.15908758]
[1731758960143,0.09367462,219.24,219.2,6.15908758]
[1731758960325,0.19367462,219.21,219.2,6.15908758]
[1731758961233,44.22153862,219.21,219.2,6.15908758]
[1731758961542,44.12153862,219.21,219.2,6.15908758]
[1731758961747,20.34465462,219.21,219.2,6.15908758]
[1731758962239,46.50243862,219.21,219.2,6.15908758]
[1731758962445,22.62555462,219.21,219.2,6.15908758]
[1731758962636,20.25098,219.21,219.2,6.15908758]
[1731758962821,0.25098,219.22,219.2,6.15908758]
[1731758963321,2.2801,219.28,219.2,6.15908758]
[1731758963541,0.1,219.25,219.2,6.15908758]
[1731758964042,0.09367462,219.22,219.2,6.15908758]
[1731758964224,2.37457462,219.21,219.2,6.15908758]
[1731758964419,2.60006462,219.21,219.2,6.15908758]
[1731758964618,26.60243862,219.21,219.2,6.15908758]
[1731758964840,46.60243862,219.21,219.2,6.15908758]
[1731758967050,46.60243862,219.21,219.2,3.59438758]
[1731758967730,46.60243862,219.21,219.2,1.06518758]
[1731758967930,46.60243862,219.21,219.2,8.758e-05]
[1731758968439,0.25098,219.08,219.03,0.5269639]
[1731758969520,0.25098,219.06,219.03,0.5269639]
[1731758971352,0.35098,219.11,219.03,0.5269639]
[1731758971643,2.2818,219.12,219.03,0.5269639]
[1731758971844,0.09367462,219.11,219.03,0.5269639]
[1731758972442,0.19367462,219.11,219.03,0.5269639]
[1731758972746,0.44465462,219.11,219.03,0.5269639]
[1731758973050,2.62665462,219.11,219.03,0.5269639]
[1731758973255,0.34465462,219.08,219.03,0.5269639]
[1731758973434,0.12549,219.05,219.03,0.5269639]
[1731758973839,20.2,219.09,219.03,0.5269639]
[1731758974139,0.09367462,219.08,219.03,0.5269639]
[1731758974754,0.09367462,219.09,219.03,0.5269639]
[1731758974955,2.282,219.11,219.03,0.5269639]
[1731758975451,0.12549,219.07,219.03,0.5269639]
[1731758975633,0.1,219.05,219.03,0.5269639]
[1731758975834,0.34465462,219.04,219.03,0.5269639]
[1731758976548,0.2,219.05,219.03,0.5269639]
[1731758976752,22.282,219.11,219.03,0.5269639]
[1731758976753,0.25098,219.06,219.03,0.5269639]
[1731758976950,0.1,219.08,219.03,0.5269639]
[1731758977151,2.63328,219.08,219.03,0.5269639]
[1731758977532,0.25098,219.07,219.03,0.5269639]
[1731758977928,0.09367462,219.04,219.03,0.5269639]
[1731758979044,46.60413862,219.04,219.03,0.5269639]
[1731758979831,0.1,218.94,218.82,58.56699599]
[1731758980038,0.34465462,218.93,218.84,4.5695]
[1731758980538,0.1,218.95,218.84,4.5695]
[1731758980752,0.1,218.96,218.84,4.5695]
[1731758980753,0.22549,218.96,218.84,4.5695]
[1731758980957,0.22549,218.97,218.84,4.5695]
[1731758981159,2.2829,219.02,218.88,35.71729599]
[1731758982036,2.2827,219.04,218.89,23.776884]
[1731758982565,2.2827,219.04,218.91,23.776884]
[1731758983247,2.2827,219.04,218.92,15.9874]
[1731758983555,0.12549,219.03,218.92,15.9874]
[1731758983946,0.22549,219.03,218.92,15.9874]
[1731758984261,2.2828,219.02,218.92,15.9874]
[1731758985346,2.2828,219.02,218.84,22.8477]
[1731758985347,0.19367462,218.97,218.87,11.4221]
[1731758985541,0.12549,218.96,218.87,11.4221]
[1731758986268,0.12549,218.99,218.87,11.4221]
[1731758986435,0.1,219.0,218.87,11.4221]
[1731758986639,2.283,219.01,218.88,59.71334461]
[1731758987250,2.283,219.01,218.89,15.9897]
[1731758987460,2.283,219.01,218.9,23.776884]
[1731758987760,0.1,218.95,218.84,11.4238]
[1731758988056,0.25098,218.96,218.84,15.9933]
[1731758988260,0.19367462,218.95,218.84,15.9933]
[1731758988452,0.1,218.93,218.84,15.9933]
[1731758988647,0.12549,218.94,218.84,15.9933]
[1731758989168,0.22549,218.92,218.84,11.4238]
[1731758989341,0.31916462,218.91,218.81,0.5269639]
[1731758989540,0.12549,218.88,218.81,0.5269639]
[1731758989741,0.31916462,218.87,218.81,0.5269639]
[1731758989959,20.0,218.88,218.81,0.5269639]
[1731758990355,0.44465462,218.82,218.81,0.5269639]
[1731758990743,0.54465462,218.82,218.81,0.5269639]
[1731758991051,46.60643862,218.82,218.81,0.5269639]
[1731758994140,2.51039,218.82,218.81,0.5269639]
[1731758994345,2.3849,218.82,218.81,0.5269639]
[1731758994751,2.47857462,218.82,218.81,0.5269639]
[1731758995748,2.60406462,218.82,218.81,0.5269639]
[1731758995948,46.50643862,218.82,218.81,0.5269639]
[1731758996269,26.50643862,218.82,218.81,0.5269639]
[1731758996471,2.72955462,218.82,218.81,0.5269639]
[1731758996767,26.60643862,218.82,218.81,0.5269639]
[1731758997773,46.60643862,218.82,218.81,0.5269639]
[1731758999465,46.25545862,218.82,218.81,0.5269639]
[1731758999674,46.35545862,218.82,218.81,0.5269639]
[1731759000785,46.60643862,218.82,218.81,0.5269639]
[1731759002171,2.4849,218.82,218.81,0.5269639]
[1731759002868,2.57857462,218.82,218.81,0.5269639]
[1731759003447,26.60643862,218.82,218.81,0.5269639]
[1731759003669,46.60643862,218.82,218.81,0.5269639]
[1731759004169,46.70643862,218.82,218.81,6.39e-05]
[1731759005064,46.70643862,218.82,218.59,0.5269639]
[1731759005065,0.12549,218.66,218.59,0.5269639]
[1731759005267,0.34465462,218.64,218.59,0.5269639]
[1731759005468,0.1,218.63,218.59,0.5269639]
[1731759005655,0.1,218.66,218.59,0.5269639]
[1731759005855,0.2,218.66,218.59,0.5269639]
[1731759006067,0.12549,218.65,218.59,0.5269639]
[1731759006471,0.1,218.64,218.59,0.5269639]
[1731759006667,20.0,218.64,218.59,0.5269639]
[1731759006872,0.12549,218.63,218.59,0.5269639]
[1731759007553,0.21916462,218.65,218.59,0.5269639]
[1731759007760,5.7156,218.7,218.6,40.29179599]
[1731759007761,0.12549,218.7,218.6,40.29179599]
[1731759007962,0.45098,218.6,218.59,0.5269639]
[1731759008154,0.25098,218.54,218.44,35.71729599]
[1731759008349,0.12549,218.54,218.44,35.71729599]
[1731759008561,0.1,218.56,218.46,35.71729599]
[1731759008766,0.1,218.54,218.46,35.71729599]
[1731759009074,0.12549,218.55,218.46,35.71729599]
[1731759009272,0.1,218.56,218.46,35.71729599]
[1731759009480,0.1,218.56,218.46,40.29459599]
[1731759009808,0.12549,218.55,218.46,4.5773]
[1731759010359,20.12549,218.56,218.49,35.71729599]
[1731759010559,2.3875,218.58,218.49,35.71729599]
[1731759010777,2.2875,218.58,218.47,35.71729599]
[1731759011086,0.1,218.6,218.49,35.71729599]
[1731759011251,20.0,218.59,218.49,35.71729599]
[1731759011576,20.0,218.59,218.5,4.5766]
[1731759011780,18.00085313,218.7,218.53,35.71729599]
[1731759011781,2.3869,218.64,218.53,35.71729599]
[1731759012073,0.1,218.62,218.53,35.71729599]
[1731759012277,0.2,218.62,218.53,35.71729599]
[1731759012456,2.2869,218.64,218.55,35.71729599]
[1731759012457,0.1,218.64,218.55,35.71729599]
[1731759012882,0.1,218.66,218.57,35.71729599]
[1731759013172,0.1,218.7,218.6,35.71729599]
[1731759013371,2.3863,218.7,218.6,40.29179599]
[1731759013574,2.4863,218.7,218.6,40.29179599]
[1731759014054,0.1,218.66,218.57,11.4374]
[1731759014259,0.1,218.66,218.55,4.5756]
[1731759014260,0.1,218.64,218.55,4.5756]
[1731759014458,0.1,218.64,218.54,35.71729599]
[1731759014774,0.1,218.59,218.53,32.6127]
[1731759014976,0.1,218.54,218.46,4.5774]
[1731759015180,0.1,218.56,218.47,35.71729599]
[1731759015484,0.1,218.6,218.49,35.71729599]
[1731759015652,0.1,218.6,218.51,35.71729599]
[1731759016575,2.2871,218.62,218.52,4.5762]
[1731759016781,0.1,218.67,218.53,35.71729599]
[1731759016981,2.2866,218.66,218.57,35.71729599]
[1731759017384,0.1,218.65,218.52,16.0168]
[1731759017572,0.1,218.65,218.55,35.71729599]
[1731759017758,2.3864,218.68,218.59,35.71729599]
[1731759017960,0.1,218.69,218.55,0.09367462]
[1731759018160,0.1,218.69,218.57,35.71729599]
[1731759018580,0.1,218.67,218.58,4.5749]
[1731759018777,0.1,218.66,218.58,4.5749]
[1731759018986,2.2865,218.68,218.59,35.71729599]
[1731759019157,0.1,218.67,218.59,35.71729599]
[1731759019361,2.2865,218.68,218.59,35.71729599]
[1731759019766,2.2862,218.7,218.59,40.29189599]
[1731759019964,0.1,218.73,218.61,35.71729599]
[1731759020186,0.1,218.73,218.63,35.71729599]
[1731759020485,0.1,218.64,218.48,16.0196]
[1731759020678,0.2,218.64,218.49,35.71729599]
[1731759020879,0.2,218.64,218.51,35.71729599]
[1731759021086,0.1,218.62,218.51,35.71729599]
[1731759021262,0.1,218.65,218.52,0.09367462]
[1731759021680,2.2868,218.64,218.54,4.5758]
[1731759021890,0.1,218.63,218.54,4.5758]
[1731759022080,2.2868,218.64,218.54,4.5758]
[1731759022282,0.1,218.63,218.54,4.5758]
[1731759022581,0.1,218.63,218.52,0.09367462]
[1731759022582,0.1,218.6,218.5,4.5765]
[1731759022768,0.1,218.59,218.5,4.5765]
[1731759022969,0.1,218.59,218.48,16.0195]
[1731759023464,0.1,218.56,218.48,16.0195]
[1731759023786,0.1,218.64,218.51,35.71729599]
[1731759023988,0.1,218.63,218.51,35.71729599]
[1731759024194,0.1,218.63,218.46,48.85219599]
[1731759024195,0.1,218.57,218.42,81.4455]
[1731759024487,13.7193,218.67,218.42,81.4455]
[1731759024488,0.1,218.54,218.42,11.4455]
[1731759024683,0.2,218.51,218.42,11.4455]
[1731759024884,0.1,218.49,218.4,44.4299]
[1731759025271,0.2,218.46,218.37,0.5269639]
[1731759025479,0.1,218.44,218.37,0.5269639]
[1731759026762,2.41439,218.45,218.37,0.5269639]
[1731759026967,0.1,218.44,218.37,0.5269639]
[1731759027765,2.41439,218.45,218.17,4.5834]
[1731759027766,0.1,218.24,218.17,4.5834]
[1731759027971,0.1,218.24,218.1,36.01717067]
[1731759028179,0.1,218.28,218.14,16.5709639]
[1731759028377,0.22549,218.28,218.14,16.5709639]
[1731759028582,0.22549,218.28,218.15,35.71729599]
[1731759028896,0.22549,218.28,218.14,16.5709639]
[1731759029088,0.1,218.28,218.15,70.0]
[1731759029399,0.1,218.29,218.16,16.0431]
[1731759030164,0.1,218.3,218.17,35.71729599]
[1731759030365,0.1,218.3,218.18,16.0417]
[1731759030665,0.1,218.3,218.19,35.71729599]
[1731759030861,0.1,218.28,218.21,35.71729599]
[1731759031086,0.1,218.26,218.18,16.0417]
[1731759031392,0.22549,218.27,218.14,0.5269639]
[1731759031393,0.2,218.23,218.16,4.5837]
[1731759031567,0.1,218.23,218.16,4.5837]
[1731759031890,0.1,218.25,218.16,4.5837]
[1731759032083,0.1,218.28,218.17,35.71729599]
[1731759032274,0.22549,218.27,218.18,11.4584]
[1731759032585,0.1,218.26,218.18,16.0417]
[1731759032786,0.1,218.27,218.18,16.0417]
[1731759033180,0.1,218.27,218.2,35.71729599]
[1731759033375,0.22549,218.29,218.18,51.75899599]
[1731759033687,0.1,218.29,218.22,35.71729599]
[1731759034275,0.1,218.29,218.2,35.71729599]
[1731759035169,0.1,218.29,218.19,16.041]
[1731759035881,0.1,218.29,218.22,35.71729599]
[1731759036286,0.1,218.29,218.2,35.71729599]
[1731759036999,0.1,218.29,218.22,35.71729599]
[1731759037491,0.1,218.29,218.23,35.71729599]
[1731759037684,0.1,218.29,218.2,35.71729599]
[1731759037879,0.1,218.29,218.22,35.71729599]
[1731759038501,0.1,218.29,218.26,35.71729599]
[1731759038669,0.1,218.29,218.23,35.71729599]
[1731759039091,0.1,218.29,218.25,35.71729599]
[1731759039270,0.1,218.29,218.25,35.99828485]
[1731759039471,0.1,218.35,218.28,35.99828485]
[1731759039700,0.1,218.4,218.34,35.99828485]
[1731759039867,0.1,218.4,218.37,35.99828485]
[1731759040381,0.1,218.4,218.36,35.99828485]
[1731759041396,0.1,218.4,218.37,35.99828485]
[1731759041576,0.1,218.4,218.35,4.5797]
[1731759041773,0.2,218.38,218.31,4.5805]
[1731759042095,0.12549,218.38,218.32,35.99828485]
[1731759042304,0.1,218.42,218.35,35.99828485]
[1731759042595,0.1,218.42,218.36,35.99828485]
[1731759043367,0.1,218.42,218.36,40.57768485]
[1731759044794,0.1,218.42,218.36,52.02658485]
[1731759045392,0.1,218.42,218.38,35.99828485]
[1731759045898,0.2,218.46,218.38,35.99828485]
[1731759046098,0.1,218.48,218.42,35.99828485]
[1731759046282,12.8912,218.57,218.35,35.99828485]
[1731759046283,0.1,218.49,218.44,35.99828485]
[1731759046482,0.1,218.47,218.43,16.0232]
[1731759046691,0.1,218.45,218.4,4.5786]
[1731759047682,0.1,218.45,218.37,33.57271096]
[1731759048889,0.1,218.45,218.37,38.15201096]
[1731759049083,0.22549,218.47,218.37,38.15201096]
[1731759050004,0.22549,218.47,218.37,11.4481]
[1731759050213,0.1,218.47,218.37,33.57271096]
[1731759051001,20.0,218.56,218.37,33.57271096]
[1731759051002,0.1,218.45,218.39,22.12461096]
[1731759051383,0.1,218.45,218.4,4.5787]
[1731759051590,0.1,218.51,218.44,22.12461096]
[1731759051913,0.1,218.54,218.44,22.12461096]
[1731759052277,0.1,218.56,218.42,0.25098]
[1731759052481,0.1,218.56,218.46,22.12461096]
[1731759052682,0.1,218.56,218.44,22.12461096]